Body Name,Document Number,Service,Type of Expenditure,Invoice Date,Supplier Name,Cost to the Council (Amount Exc VAT),Month
EREWASH BOROUGH COUNCIL,220576,Balance Sheet,COVID19 Discretionary Business Grants,27/08/20,A.A.M INSTALLATIONS LTD,"7,100.00",Aug-20
EREWASH BOROUGH COUNCIL,220549,Balance Sheet,ICT Works,31/07/20,ADVANCED BUSINESS SOFTWARE & SOLUTIONS LIMITED,"14,925.42",Aug-20
EREWASH BOROUGH COUNCIL,220604,Balance Sheet,COVID19 Discretionary Business Grants,27/08/20,ADVANCED VENDING SERVICES LTD,"2,100.00",Aug-20
EREWASH BOROUGH COUNCIL,220633,Balance Sheet,COVID19 Discretionary Business Grants,27/08/20,AIRVEND UL LTD,"1,200.00",Aug-20
EREWASH BOROUGH COUNCIL,220215,Street Scene,Materials/Consumables,07/08/20,AJ PEARS LTD,250.00,Aug-20
EREWASH BOROUGH COUNCIL,220619,Balance Sheet,COVID19 Discretionary Business Grants,27/08/20,AJ TASSI LIMITED,"2,100.00",Aug-20
EREWASH BOROUGH COUNCIL,220595,Balance Sheet,COVID19 Discretionary Business Grants,27/08/20,AJKM LIMITED,"2,500.00",Aug-20
EREWASH BOROUGH COUNCIL,220236,ICT Support Services,GIS Software Licences,01/08/20,ALIGNED ASSETS LTD,"5,826.47",Aug-20
EREWASH BOROUGH COUNCIL,220410,Treasury Management and Bank Charges,Allpay/Post Office Charges,31/07/20,ALLPAY LIMITED,"1,109.15",Aug-20
EREWASH BOROUGH COUNCIL,219976,Green Space,Contracted Services,24/07/20,ALPHA DRAIN SERVICES,990.00,Aug-20
EREWASH BOROUGH COUNCIL,220126,Property and Estates,Reactive Maintenance,29/07/20,ALPHA PARTNER (MIDLANDS)  LIMITED,305.00,Aug-20
EREWASH BOROUGH COUNCIL,220262,Green Space,Contracted Services,30/07/20,ALPHA PARTNER (MIDLANDS)  LIMITED,345.00,Aug-20
EREWASH BOROUGH COUNCIL,220568,Balance Sheet,COVID19 Discretionary Business Grants,27/08/20,AMK AUTOMOTIVE SOLUTIONS,"2,700.00",Aug-20
EREWASH BOROUGH COUNCIL,220628,Balance Sheet,COVID19 Discretionary Business Grants,27/08/20,AMS PLATINUM SERVICES LTD,"1,200.00",Aug-20
EREWASH BOROUGH COUNCIL,220241,ICT Support Services,Office Paper,28/07/20,ANTALIS DOCUMENT SUPPLIES,241.00,Aug-20
EREWASH BOROUGH COUNCIL,220144,ICT Support Services,Office Paper,08/07/20,ANTALIS DOCUMENT SUPPLIES,317.95,Aug-20
EREWASH BOROUGH COUNCIL,220599,Balance Sheet,COVID19 Discretionary Business Grants,27/08/20,APPLETREE CATERING,"2,500.00",Aug-20
EREWASH BOROUGH COUNCIL,220320,Economic Development,Project Grants,19/10/18,ASSOCIATED NEWSPAPERS LTD,250.00,Aug-20
EREWASH BOROUGH COUNCIL,220108,Arts Development,Project Grants,13/07/20,AVAGO CRAFTS,385.00,Aug-20
EREWASH BOROUGH COUNCIL,220571,Balance Sheet,COVID19 Discretionary Business Grants,27/08/20,BALDWINS GRAB HIRE LTD,"2,700.00",Aug-20
EREWASH BOROUGH COUNCIL,219860,Erewash Museum,Advertising,25/06/20,BANNER GROUP LIMITED,211.16,Aug-20
EREWASH BOROUGH COUNCIL,220658,Balance Sheet,COVID19 Discretionary Business Grants,27/08/20,BARE,"1,200.00",Aug-20
EREWASH BOROUGH COUNCIL,220624,Balance Sheet,COVID19 Discretionary Business Grants,27/08/20,BE GE SEATING UK LTD,"2,100.00",Aug-20
EREWASH BOROUGH COUNCIL,220360,Trees Hedges and Local Nature Reserves,Contracted Services,10/08/20,BEECHWOOD TREES AND LANDSCAPLES LTD,"1,500.00",Aug-20
EREWASH BOROUGH COUNCIL,220359,Trees Hedges and Local Nature Reserves,Contracted Services,10/08/20,BEECHWOOD TREES AND LANDSCAPLES LTD,"1,500.00",Aug-20
EREWASH BOROUGH COUNCIL,220149,Trees Hedges and Local Nature Reserves,Contracted Services,29/07/20,BEECHWOOD TREES AND LANDSCAPLES LTD,"10,800.00",Aug-20
EREWASH BOROUGH COUNCIL,220574,Balance Sheet,COVID19 Discretionary Business Grants,27/08/20,BEMO PROJECT ENGINEERING UK LTD,"10,000.00",Aug-20
EREWASH BOROUGH COUNCIL,220627,Balance Sheet,COVID19 Discretionary Business Grants,27/08/20,BLACK HOLE BREWERY,"2,100.00",Aug-20
EREWASH BOROUGH COUNCIL,220564,Balance Sheet,COVID19 Discretionary Business Grants,27/08/20,BOB RUDD LEISURE LTD,"10,000.00",Aug-20
EREWASH BOROUGH COUNCIL,220255,Transport Trading Account,Maintenance of Equipment,31/07/20,BOC LTD,978.57,Aug-20
EREWASH BOROUGH COUNCIL,220258,ICT Support Services,Telephones,22/07/20,BRITISH TELECOMMUNICATIONS PLC,"1,729.40",Aug-20
EREWASH BOROUGH COUNCIL,220089,CCTV - Ilkeston and Long Eaton,BT Line Rental,10/07/20,BT REDCARE,"9,739.64",Aug-20
EREWASH BOROUGH COUNCIL,220366,Occupational Health and Welfare,Occupational Health Service,01/08/20,BUPA HEALTH CLINICS,406.44,Aug-20
EREWASH BOROUGH COUNCIL,220242,Training - Personnel Costs Only,Courses and Seminars,20/07/20,BUSINESS RISK MANAGEMENT LTD,495.00,Aug-20
EREWASH BOROUGH COUNCIL,220629,Balance Sheet,COVID19 Discretionary Business Grants,27/08/20,CALIBRE TRADING LTD,"1,200.00",Aug-20
EREWASH BOROUGH COUNCIL,220623,Balance Sheet,COVID19 Discretionary Business Grants,27/08/20,CANTERBURY'S HOME IMPROVEMENTS,"2,100.00",Aug-20
EREWASH BOROUGH COUNCIL,220601,Balance Sheet,COVID19 Discretionary Business Grants,27/08/20,CARLTON FURNITURE LTD,"2,500.00",Aug-20
EREWASH BOROUGH COUNCIL,220006,ICT Support Services,General Equipment,21/07/20,CCS MEDIA LIMITED,"1,093.20",Aug-20
EREWASH BOROUGH COUNCIL,220652,Balance Sheet,COVID19 Discretionary Business Grants,27/08/20,CHOP SHOP LIMITED,"1,200.00",Aug-20
EREWASH BOROUGH COUNCIL,220297,Revenues and Benefits,Software Licences,30/03/20,CIVICA UK LIMITED,"1,000.00",Aug-20
EREWASH BOROUGH COUNCIL,220111,Green Space,Materials/Consumables,30/07/20,CLEARWAY (MIDLANDS) LIMITED,390.00,Aug-20
EREWASH BOROUGH COUNCIL,220589,Balance Sheet,COVID19 Discretionary Business Grants,27/08/20,COMPLETE COOLING SERVICES LTD,"2,500.00",Aug-20
EREWASH BOROUGH COUNCIL,220457,Property and Estates,PPM Mechanical and Equipment,11/08/20,CONCEPT ELEVATORS (UK) LTD,360.67,Aug-20
EREWASH BOROUGH COUNCIL,219832,Household/Residual Waste Collection,Repairs and Maintenance,14/07/20,COOLAIR LOGAN LIMITED,225.00,Aug-20
EREWASH BOROUGH COUNCIL,219835,Household/Residual Waste Collection,Repairs and Maintenance,09/07/20,COOLAIR LOGAN LIMITED,225.00,Aug-20
EREWASH BOROUGH COUNCIL,219838,Kerbside Dry Recycling Collection,Repairs and Maintenance,09/07/20,COOLAIR LOGAN LIMITED,225.00,Aug-20
EREWASH BOROUGH COUNCIL,219827,Household/Residual Waste Collection,Repairs and Maintenance,16/07/20,COOLAIR LOGAN LIMITED,225.00,Aug-20
EREWASH BOROUGH COUNCIL,219833,Household/Residual Waste Collection,Repairs and Maintenance,14/07/20,COOLAIR LOGAN LIMITED,225.00,Aug-20
EREWASH BOROUGH COUNCIL,219837,Trade Waste,Repairs and Maintenance,09/07/20,COOLAIR LOGAN LIMITED,225.00,Aug-20
EREWASH BOROUGH COUNCIL,219836,Trade Waste,Repairs and Maintenance,09/07/20,COOLAIR LOGAN LIMITED,225.00,Aug-20
EREWASH BOROUGH COUNCIL,219828,Household/Residual Waste Collection,Repairs and Maintenance,16/07/20,COOLAIR LOGAN LIMITED,225.00,Aug-20
EREWASH BOROUGH COUNCIL,219834,Household/Residual Waste Collection,Repairs and Maintenance,09/07/20,COOLAIR LOGAN LIMITED,225.00,Aug-20
EREWASH BOROUGH COUNCIL,220596,Balance Sheet,COVID19 Discretionary Business Grants,27/08/20,CORNERSTONE DISTRIBUTION LTD,"2,500.00",Aug-20
EREWASH BOROUGH COUNCIL,220617,Balance Sheet,COVID19 Discretionary Business Grants,27/08/20,CRASSUS GRABHIRE LTD,"2,100.00",Aug-20
EREWASH BOROUGH COUNCIL,220597,Balance Sheet,COVID19 Discretionary Business Grants,27/08/20,CREATIVE PROJECTS (MIDS) LTD,"2,500.00",Aug-20
EREWASH BOROUGH COUNCIL,220581,Balance Sheet,COVID19 Discretionary Business Grants,27/08/20,CRUISE-IN-CONTROL LIMITED,"7,100.00",Aug-20
EREWASH BOROUGH COUNCIL,220608,Balance Sheet,COVID19 Discretionary Business Grants,27/08/20,CUSTOM RADIATOR COVERS LTD,"2,100.00",Aug-20
EREWASH BOROUGH COUNCIL,220648,Balance Sheet,COVID19 Discretionary Business Grants,27/08/20,DAVIES MOTORCYCLES,"1,200.00",Aug-20
EREWASH BOROUGH COUNCIL,220293,"Sport, Health and Physical Activity - Alliance",Fees Costs and Expenses,10/08/20,DAVIES SPORTS T/A FINDEL EDUCATION LIMITED,325.87,Aug-20
EREWASH BOROUGH COUNCIL,220250,Trade Waste,Repairs and Maintenance,27/07/20,DENNIS EAGLE LTD,265.20,Aug-20
EREWASH BOROUGH COUNCIL,220353,Kerbside Dry Recycling Collection,Repairs and Maintenance,12/08/20,DENNIS EAGLE LTD,287.30,Aug-20
EREWASH BOROUGH COUNCIL,220358,Household/Residual Waste Collection,Repairs and Maintenance,10/08/20,DENNIS EAGLE LTD,466.83,Aug-20
EREWASH BOROUGH COUNCIL,220249,Kerbside Dry Recycling Collection,Repairs and Maintenance,31/07/20,DENNIS EAGLE LTD,975.08,Aug-20
EREWASH BOROUGH COUNCIL,220356,Kerbside Dry Recycling Collection,Repairs and Maintenance,17/07/20,DENNIS EAGLE LTD,"4,836.60",Aug-20
EREWASH BOROUGH COUNCIL,220412,Non Domestic Rates Income and Expenditure,NNDR Tariff,19/08/20,DERBY CITY COUNCIL,"520,564.97",Aug-20
EREWASH BOROUGH COUNCIL,220411,Non Domestic Rates Income and Expenditure,NNDR Tariff,20/07/20,DERBY CITY COUNCIL,"585,635.60",Aug-20
EREWASH BOROUGH COUNCIL,220497,Balance Sheet,Payroll Collection A/c - Credit Union,25/08/20,DERBYSHIRE COMMUNITY BANK,330.00,Aug-20
EREWASH BOROUGH COUNCIL,220342,Personnel,Recruitment Expenses,05/08/20,DERBYSHIRE COUNTY COUNCIL...,336.00,Aug-20
EREWASH BOROUGH COUNCIL,220314,Balance Sheet,Payroll Collection A/c - Purchase Added Years,12/08/20,DERBYSHIRE COUNTY COUNCIL...,459.35,Aug-20
EREWASH BOROUGH COUNCIL,220287,Planning Policy,Software Licences,11/08/20,DERBYSHIRE COUNTY COUNCIL...,998.88,Aug-20
EREWASH BOROUGH COUNCIL,220104,Local Land Charges,County Council Search Charges,15/07/20,DERBYSHIRE COUNTY COUNCIL...,"2,663.08",Aug-20
EREWASH BOROUGH COUNCIL,220337,Compensation and Pensions,Compensatory Added Years,12/08/20,DERBYSHIRE COUNTY COUNCIL...,"19,240.35",Aug-20
EREWASH BOROUGH COUNCIL,220348,Balance Sheet,Bond Deposit Accounts S106,17/08/20,DERBYSHIRE COUNTY COUNCIL...,"80,000.00",Aug-20
EREWASH BOROUGH COUNCIL,220314,Balance Sheet,Payroll Collection A/c - Superannuation,12/08/20,DERBYSHIRE COUNTY COUNCIL...,"204,434.23",Aug-20
EREWASH BOROUGH COUNCIL,220582,Balance Sheet,COVID19 Discretionary Business Grants,27/08/20,DERBYSHIRE PLUMBING & HEATING,"2,700.00",Aug-20
EREWASH BOROUGH COUNCIL,220413,Hackney Carriages / Private Hire,Criminal Records Bureau Checks,31/07/20,DISCLOSURE & BARRING SERVICE,280.00,Aug-20
EREWASH BOROUGH COUNCIL,220107,Chief Executives Office,Subscriptions,01/05/20,DISTRICT COUNCIL'S NETWORK,"1,155.00",Aug-20
EREWASH BOROUGH COUNCIL,220492,Infectious Diseases and Food Poisoning,Work in Default,25/08/20,REDACTED PERSONAL DATA,"3,507.37",Aug-20
EREWASH BOROUGH COUNCIL,220586,Balance Sheet,COVID19 Discretionary Business Grants,27/08/20,DONNA'S HAIR DESIGN,"4,200.00",Aug-20
EREWASH BOROUGH COUNCIL,220551,Revenues and Benefits,Postages,11/08/20,DSI BILLING SERVICES LTD,637.45,Aug-20
EREWASH BOROUGH COUNCIL,220616,Balance Sheet,COVID19 Discretionary Business Grants,27/08/20,DUNDORE LIMITED,"2,100.00",Aug-20
EREWASH BOROUGH COUNCIL,220657,Balance Sheet,COVID19 Discretionary Business Grants,27/08/20,EAST MIDLANDS MEDICAL SERVICES LTD,"1,200.00",Aug-20
EREWASH BOROUGH COUNCIL,220153,Green Space,Materials/Consumables,31/07/20,EAST RIDING HORTICULTURE LTD,"1,149.60",Aug-20
EREWASH BOROUGH COUNCIL,220184,Economic Development,Project Grants,12/07/20,EFFECTIVE SECURITY SERVICES LTD,"1,536.00",Aug-20
EREWASH BOROUGH COUNCIL,220183,Economic Development,Project Grants,28/06/20,EFFECTIVE SECURITY SERVICES LTD,"3,072.00",Aug-20
EREWASH BOROUGH COUNCIL,220206,Economic Development,Project Grants,05/07/20,EFFECTIVE SECURITY SERVICES LTD,"3,328.00",Aug-20
EREWASH BOROUGH COUNCIL,220182,Economic Development,Project Grants,19/07/20,EFFECTIVE SECURITY SERVICES LTD,"4,608.00",Aug-20
EREWASH BOROUGH COUNCIL,220634,Balance Sheet,COVID19 Discretionary Business Grants,27/08/20,ELEGANT BEAUTY BY EMMA,"1,200.00",Aug-20
EREWASH BOROUGH COUNCIL,220562,Balance Sheet,COVID19 Discretionary Business Grants,27/08/20,ELENA'S BEAUTY & NAILS,"4,200.00",Aug-20
EREWASH BOROUGH COUNCIL,220496,Balance Sheet,Payroll Collection A/c - Labour Party Funds,25/08/20,EREWASH LABOUR GROUP,554.24,Aug-20
EREWASH BOROUGH COUNCIL,220178,Household/Residual Waste Collection,Hire Charges,27/07/20,EUROMUNICIPAL LTD,"1,700.00",Aug-20
EREWASH BOROUGH COUNCIL,219848,Green Space,Repairs and Maintenance,14/07/20,EUROTRUCK MIDLANDS LTD,109.18,Aug-20
EREWASH BOROUGH COUNCIL,219848,Kerbside Dry Recycling Collection,Repairs and Maintenance,14/07/20,EUROTRUCK MIDLANDS LTD,282.05,Aug-20
EREWASH BOROUGH COUNCIL,220610,Balance Sheet,COVID19 Discretionary Business Grants,27/08/20,EXCLUSIVE BY DESIGN UK LTD,"2,100.00",Aug-20
EREWASH BOROUGH COUNCIL,220168,Kerbside Dry Recycling Collection,Agency Staff,06/07/20,EXTRA PERSONNEL LTD,136.68,Aug-20
EREWASH BOROUGH COUNCIL,220160,Kerbside Dry Recycling Collection,Agency Staff,11/05/20,EXTRA PERSONNEL LTD,195.66,Aug-20
EREWASH BOROUGH COUNCIL,220168,Household/Residual Waste Collection,Agency Staff,06/07/20,EXTRA PERSONNEL LTD,205.02,Aug-20
EREWASH BOROUGH COUNCIL,220160,Household/Residual Waste Collection,Agency Staff,11/05/20,EXTRA PERSONNEL LTD,293.48,Aug-20
EREWASH BOROUGH COUNCIL,220142,Green Space,Agency Staff,06/07/20,EXTRA PERSONNEL LTD,323.52,Aug-20
EREWASH BOROUGH COUNCIL,220141,Green Space,Agency Staff,29/06/20,EXTRA PERSONNEL LTD,323.52,Aug-20
EREWASH BOROUGH COUNCIL,220404,Street Scene,Agency Staff,27/07/20,EXTRA PERSONNEL LTD,355.14,Aug-20
EREWASH BOROUGH COUNCIL,220169,Street Scene,Agency Staff,20/07/20,EXTRA PERSONNEL LTD,394.35,Aug-20
EREWASH BOROUGH COUNCIL,220114,Street Scene,Agency Staff,13/07/20,EXTRA PERSONNEL LTD,396.60,Aug-20
EREWASH BOROUGH COUNCIL,220537,Green Space,Agency Staff,27/07/20,EXTRA PERSONNEL LTD,498.76,Aug-20
EREWASH BOROUGH COUNCIL,220403,Street Scene,Agency Staff,03/08/20,EXTRA PERSONNEL LTD,592.65,Aug-20
EREWASH BOROUGH COUNCIL,220141,Public Conveniences,Agency Staff,29/06/20,EXTRA PERSONNEL LTD,621.34,Aug-20
EREWASH BOROUGH COUNCIL,220142,Public Conveniences,Agency Staff,06/07/20,EXTRA PERSONNEL LTD,621.34,Aug-20
EREWASH BOROUGH COUNCIL,220207,Public Conveniences,Agency Staff,20/07/20,EXTRA PERSONNEL LTD,657.40,Aug-20
EREWASH BOROUGH COUNCIL,220536,Public Conveniences,Agency Staff,27/07/20,EXTRA PERSONNEL LTD,657.40,Aug-20
EREWASH BOROUGH COUNCIL,220139,Green Space,Agency Staff,29/06/20,EXTRA PERSONNEL LTD,997.52,Aug-20
EREWASH BOROUGH COUNCIL,220140,Green Space,Agency Staff,06/07/20,EXTRA PERSONNEL LTD,997.52,Aug-20
EREWASH BOROUGH COUNCIL,220148,Green Space,Agency Staff,02/07/20,EXTRA PERSONNEL LTD,"1,010.10",Aug-20
EREWASH BOROUGH COUNCIL,220207,Green Space,Agency Staff,20/07/20,EXTRA PERSONNEL LTD,"1,223.23",Aug-20
EREWASH BOROUGH COUNCIL,220536,Green Space,Agency Staff,27/07/20,EXTRA PERSONNEL LTD,"1,398.73",Aug-20
EREWASH BOROUGH COUNCIL,220170,Kerbside Dry Recycling Collection,Agency Staff,29/06/20,EXTRA PERSONNEL LTD,"1,999.99",Aug-20
EREWASH BOROUGH COUNCIL,220167,Kerbside Dry Recycling Collection,Agency Staff,06/07/20,EXTRA PERSONNEL LTD,"2,449.99",Aug-20
EREWASH BOROUGH COUNCIL,220161,Kerbside Dry Recycling Collection,Agency Staff,20/07/20,EXTRA PERSONNEL LTD,"2,469.33",Aug-20
EREWASH BOROUGH COUNCIL,220166,Kerbside Dry Recycling Collection,Agency Staff,13/07/20,EXTRA PERSONNEL LTD,"2,521.11",Aug-20
EREWASH BOROUGH COUNCIL,220207,Street Scene,Agency Staff,20/07/20,EXTRA PERSONNEL LTD,"2,727.64",Aug-20
EREWASH BOROUGH COUNCIL,220170,Household/Residual Waste Collection,Agency Staff,29/06/20,EXTRA PERSONNEL LTD,"2,999.99",Aug-20
EREWASH BOROUGH COUNCIL,220537,Street Scene,Agency Staff,27/07/20,EXTRA PERSONNEL LTD,"3,203.04",Aug-20
EREWASH BOROUGH COUNCIL,220141,Street Scene,Agency Staff,29/06/20,EXTRA PERSONNEL LTD,"3,391.00",Aug-20
EREWASH BOROUGH COUNCIL,220142,Street Scene,Agency Staff,06/07/20,EXTRA PERSONNEL LTD,"3,558.59",Aug-20
EREWASH BOROUGH COUNCIL,220167,Household/Residual Waste Collection,Agency Staff,06/07/20,EXTRA PERSONNEL LTD,"3,674.98",Aug-20
EREWASH BOROUGH COUNCIL,220536,Street Scene,Agency Staff,27/07/20,EXTRA PERSONNEL LTD,"3,686.49",Aug-20
EREWASH BOROUGH COUNCIL,220161,Household/Residual Waste Collection,Agency Staff,20/07/20,EXTRA PERSONNEL LTD,"3,704.00",Aug-20
EREWASH BOROUGH COUNCIL,220166,Household/Residual Waste Collection,Agency Staff,13/07/20,EXTRA PERSONNEL LTD,"3,781.66",Aug-20
EREWASH BOROUGH COUNCIL,220139,Street Scene,Agency Staff,29/06/20,EXTRA PERSONNEL LTD,"3,908.20",Aug-20
EREWASH BOROUGH COUNCIL,220140,Street Scene,Agency Staff,06/07/20,EXTRA PERSONNEL LTD,"4,189.37",Aug-20
EREWASH BOROUGH COUNCIL,220148,Street Scene,Agency Staff,02/07/20,EXTRA PERSONNEL LTD,"4,412.35",Aug-20
EREWASH BOROUGH COUNCIL,220600,Balance Sheet,COVID19 Discretionary Business Grants,27/08/20,FASTLATHE LIMITED,"2,500.00",Aug-20
EREWASH BOROUGH COUNCIL,220213,Green Space,Materials/Consumables,23/07/20,FLEET (LINE MARKERS) LTD,593.39,Aug-20
EREWASH BOROUGH COUNCIL,220587,Balance Sheet,COVID19 Discretionary Business Grants,27/08/20,FOREST SCHOOL NURSERIES LTD,"2,500.00",Aug-20
EREWASH BOROUGH COUNCIL,220660,Balance Sheet,COVID19 Discretionary Business Grants,27/08/20,FORMOST 4 X4,700.00,Aug-20
EREWASH BOROUGH COUNCIL,220626,Balance Sheet,COVID19 Discretionary Business Grants,27/08/20,FORWARD FABRICATIONS LIMITED,"2,100.00",Aug-20
EREWASH BOROUGH COUNCIL,220621,Balance Sheet,COVID19 Discretionary Business Grants,27/08/20,FOUR L CARS LTD,"2,100.00",Aug-20
EREWASH BOROUGH COUNCIL,220311,Balance Sheet,Trade Waste System,11/08/20,G B FLINT COACHWORKS LIMITED,393.80,Aug-20
EREWASH BOROUGH COUNCIL,220270,Kerbside Dry Recycling Collection,Waste Disposal,30/06/20,GAE SMITH HOLDINGS T/A CASEPAK,"1,749.00",Aug-20
EREWASH BOROUGH COUNCIL,220535,Kerbside Dry Recycling Collection,Waste Disposal,31/07/20,GAE SMITH HOLDINGS T/A CASEPAK,"2,142.86",Aug-20
EREWASH BOROUGH COUNCIL,220533,Kerbside Dry Recycling Collection,Waste Disposal,31/07/20,GAE SMITH HOLDINGS T/A CASEPAK,"48,679.61",Aug-20
EREWASH BOROUGH COUNCIL,220269,Kerbside Dry Recycling Collection,Waste Disposal,30/06/20,GAE SMITH HOLDINGS T/A CASEPAK,"62,627.40",Aug-20
EREWASH BOROUGH COUNCIL,220560,Balance Sheet,COVID19 Discretionary Business Grants,27/08/20,GASCOIGNE DESIGNS UPHOLSTERY MANUFACTURERS LTD,"25,000.00",Aug-20
EREWASH BOROUGH COUNCIL,220630,Balance Sheet,COVID19 Discretionary Business Grants,27/08/20,GCS CABINS LTD,"1,200.00",Aug-20
EREWASH BOROUGH COUNCIL,220448,Property and Estates,Repairs and Maintenance,31/07/20,GDUK DOOR SOLUTIONS LIMITED,227.50,Aug-20
EREWASH BOROUGH COUNCIL,219911,Planning Policy,Consultants Fees,15/07/20,GEDLING BOROUGH COUNCIL.,250.00,Aug-20
EREWASH BOROUGH COUNCIL,220124,Green Space,Contracted Services,26/07/20,GO TRAFFIC MANAGEMENT,795.00,Aug-20
EREWASH BOROUGH COUNCIL,220588,Balance Sheet,COVID19 Discretionary Business Grants,27/08/20,GOLDBURY PAINT & POWDERCOAT LTD,"2,500.00",Aug-20
EREWASH BOROUGH COUNCIL,220128,Homelessness,Agency Staff,15/07/20,GREENACRE RECRUITMENT,588.63,Aug-20
EREWASH BOROUGH COUNCIL,219749,Homelessness,Agency Staff,08/07/20,GREENACRE RECRUITMENT,616.33,Aug-20
EREWASH BOROUGH COUNCIL,219856,Green Space,Materials/Consumables,15/07/20,GROUNDSMAN TOOLS AND SUPPLIES LLP,347.03,Aug-20
EREWASH BOROUGH COUNCIL,220636,Balance Sheet,COVID19 Discretionary Business Grants,27/08/20,H PELL @ BROWNS HAIRDRESSING,"1,200.00",Aug-20
EREWASH BOROUGH COUNCIL,219851,Street Scene,Repairs and Maintenance,09/07/20,H W MARTIN HOLDINGS LIMITED,"1,210.60",Aug-20
EREWASH BOROUGH COUNCIL,220240,Play Areas,Materials/Consumables,04/08/20,HAGSSMP,315.20,Aug-20
EREWASH BOROUGH COUNCIL,220598,Balance Sheet,COVID19 Discretionary Business Grants,27/08/20,HARRY STEER LTD,"2,500.00",Aug-20
EREWASH BOROUGH COUNCIL,220145,Community Services,Reference Literature and Publications,29/07/20,HAYMARKET MEDIA GROUP LTD,"1,469.00",Aug-20
EREWASH BOROUGH COUNCIL,220635,Balance Sheet,COVID19 Discretionary Business Grants,27/08/20,REDACTED PERSONAL DATA,"1,200.00",Aug-20
EREWASH BOROUGH COUNCIL,220656,Balance Sheet,COVID19 Discretionary Business Grants,27/08/20,HELPING HOOVES DERBYSHIRE CIC,"1,200.00",Aug-20
EREWASH BOROUGH COUNCIL,220012,Green Space,Repairs and Maintenance,24/07/20,HENTON & CHATTELL LTD,401.21,Aug-20
EREWASH BOROUGH COUNCIL,220590,Balance Sheet,COVID19 Discretionary Business Grants,27/08/20,HH AND SPOOKY NIGHTS LTD,"2,500.00",Aug-20
EREWASH BOROUGH COUNCIL,220502,Balance Sheet,Payroll Collection A/c - Attachment Orders,25/08/20,HMCTS,251.59,Aug-20
EREWASH BOROUGH COUNCIL,220347,Personnel,Apprenticeship Levy,17/08/20,HMRC CUMBERNAULD,"-1,250.00",Aug-20
EREWASH BOROUGH COUNCIL,220102,Balance Sheet,Payroll Collection A/c - Income Tax,03/08/20,HMRC CUMBERNAULD,235.20,Aug-20
EREWASH BOROUGH COUNCIL,220494,Balance Sheet,Payroll Collection A/c - Income Tax,25/08/20,HMRC CUMBERNAULD,267.80,Aug-20
EREWASH BOROUGH COUNCIL,220102,Balance Sheet,Payroll Collection A/c - National Insurance,03/08/20,HMRC CUMBERNAULD,378.07,Aug-20
EREWASH BOROUGH COUNCIL,220347,Balance Sheet,Payroll Collection A/c - Recovery of Student Loan,17/08/20,HMRC CUMBERNAULD,"1,002.00",Aug-20
EREWASH BOROUGH COUNCIL,220347,Balance Sheet,Apprenticeship Levy,17/08/20,HMRC CUMBERNAULD,"3,244.00",Aug-20
EREWASH BOROUGH COUNCIL,220347,Balance Sheet,Payroll Collection A/c - Income Tax,17/08/20,HMRC CUMBERNAULD,"64,421.13",Aug-20
EREWASH BOROUGH COUNCIL,220347,Balance Sheet,Payroll Collection A/c - National Insurance,17/08/20,HMRC CUMBERNAULD,"98,163.77",Aug-20
EREWASH BOROUGH COUNCIL,220650,Balance Sheet,COVID19 Discretionary Business Grants,27/08/20,IBC SCHOOL OF DANCING,"1,200.00",Aug-20
EREWASH BOROUGH COUNCIL,220109,Registration of Electors,Printing and Stationery,27/07/20,IDOX SOFTWARE LIMITED,325.00,Aug-20
EREWASH BOROUGH COUNCIL,220632,Balance Sheet,COVID19 Discretionary Business Grants,27/08/20,INDEPENDENT AUDIT AND INSPECTION SERVICES LTD,"1,200.00",Aug-20
EREWASH BOROUGH COUNCIL,220289,Car Parking,Credit/Debit Card Charges,31/07/20,INTERNATIONAL PARKING SYSTEMS UK LTD,374.24,Aug-20
EREWASH BOROUGH COUNCIL,220475,Property and Estates,Reactive Maintenance,04/08/20,IRONMONGERY DIRECT LTD,387.00,Aug-20
EREWASH BOROUGH COUNCIL,220659,Balance Sheet,COVID19 Discretionary Business Grants,27/08/20,JCH INTERIORS LTD,"1,200.00",Aug-20
EREWASH BOROUGH COUNCIL,220490,Balance Sheet,Council Tax Collection Fund Control Account,24/08/20,REDACTED PERSONAL DATA,321.03,Aug-20
EREWASH BOROUGH COUNCIL,220509,Community Safety,General Equipment,13/08/20,JNE SECURITY LIMITED,876.00,Aug-20
EREWASH BOROUGH COUNCIL,220618,Balance Sheet,COVID19 Discretionary Business Grants,27/08/20,REDACTED PERSONAL DATA,"2,100.00",Aug-20
EREWASH BOROUGH COUNCIL,220338,Balance Sheet,Childcare Salary Sacrifice-Kiddie Vouchers,05/08/20,KIDDIVOUCHERS LTD,859.51,Aug-20
EREWASH BOROUGH COUNCIL,220614,Balance Sheet,COVID19 Discretionary Business Grants,27/08/20,KIMMITT TEMPERING SERVICES LTD,"2,100.00",Aug-20
EREWASH BOROUGH COUNCIL,220202,Cemeteries,Contracted Services,31/07/20,KINGS ARMOURED SECURITY SERVICES,80.50,Aug-20
EREWASH BOROUGH COUNCIL,220445,Car Parking,Contracted Services,31/07/20,KINGS ARMOURED SECURITY SERVICES,655.40,Aug-20
EREWASH BOROUGH COUNCIL,220202,Front Line Support Services,Security,31/07/20,KINGS ARMOURED SECURITY SERVICES,740.60,Aug-20
EREWASH BOROUGH COUNCIL,220642,Balance Sheet,COVID19 Discretionary Business Grants,27/08/20,KL PLASTICS,"1,200.00",Aug-20
EREWASH BOROUGH COUNCIL,220216,Green Space,Materials/Consumables,22/07/20,KRM BUILDING SUPPLIES LTD,240.00,Aug-20
EREWASH BOROUGH COUNCIL,220002,ICT Support Services,Equipment Leasing Charge,21/07/20,KYOCERA DOCUMENT SOLUTIONS (UK) LTD,"1,507.71",Aug-20
EREWASH BOROUGH COUNCIL,220643,Balance Sheet,COVID19 Discretionary Business Grants,27/08/20,L & S HOME COMFORTS,"1,200.00",Aug-20
EREWASH BOROUGH COUNCIL,220136,Street Scene,Contracted Services,01/06/20,LANGUARD LTD,"3,511.35",Aug-20
EREWASH BOROUGH COUNCIL,220152,Street Scene,Contracted Services,01/08/20,LANGUARD LTD,"3,511.35",Aug-20
EREWASH BOROUGH COUNCIL,220135,Street Scene,Contracted Services,28/05/20,LANGUARD LTD,"3,511.35",Aug-20
EREWASH BOROUGH COUNCIL,220573,Balance Sheet,COVID19 Discretionary Business Grants,27/08/20,LAYSTONE ELECTRONICS LTD,"10,000.00",Aug-20
EREWASH BOROUGH COUNCIL,220580,Balance Sheet,COVID19 Discretionary Business Grants,27/08/20,LETS FASCIA IT LTD,"7,100.00",Aug-20
EREWASH BOROUGH COUNCIL,220591,Balance Sheet,COVID19 Discretionary Business Grants,27/08/20,LIEVENS FURNITURE LIMITED,"2,500.00",Aug-20
EREWASH BOROUGH COUNCIL,220569,Balance Sheet,COVID19 Discretionary Business Grants,27/08/20,LIFE OF A BEAUTY GIRL MAKE UP ARTIST (SAM CAHILL),"4,200.00",Aug-20
EREWASH BOROUGH COUNCIL,220640,Balance Sheet,COVID19 Discretionary Business Grants,27/08/20,LIFESTYLE1.COM LTD,"1,200.00",Aug-20
EREWASH BOROUGH COUNCIL,220605,Balance Sheet,COVID19 Discretionary Business Grants,27/08/20,LIGHTBULB CREDIT LTD,"2,100.00",Aug-20
EREWASH BOROUGH COUNCIL,220609,Balance Sheet,COVID19 Discretionary Business Grants,27/08/20,LIMETREE KITCHENS BATHROOMS LTD,"2,100.00",Aug-20
EREWASH BOROUGH COUNCIL,220491,Green Space,Materials/Consumables,20/08/20,REDACTED PERSONAL DATA,"1,151.00",Aug-20
EREWASH BOROUGH COUNCIL,220625,Balance Sheet,COVID19 Discretionary Business Grants,27/08/20,LITTLE EATON PLAY SCHOOL,"2,100.00",Aug-20
EREWASH BOROUGH COUNCIL,220547,Civic Duties Hospitality,Civic Regalia and Robes,02/07/20,LLOYDS BANK,29.30,Aug-20
EREWASH BOROUGH COUNCIL,220547,Kerbside Dry Recycling Collection,General Publicity and Promotion,02/07/20,LLOYDS BANK,29.99,Aug-20
EREWASH BOROUGH COUNCIL,220547,Neighbourhood Wardens,Uniforms,02/07/20,LLOYDS BANK,30.82,Aug-20
EREWASH BOROUGH COUNCIL,220547,Property and Estates,Materials/Consumables,02/07/20,LLOYDS BANK,32.08,Aug-20
EREWASH BOROUGH COUNCIL,220547,Outreach Project,Fees Costs and Expenses,02/07/20,LLOYDS BANK,36.65,Aug-20
EREWASH BOROUGH COUNCIL,220547,Community Services,Printing and Stationery,02/07/20,LLOYDS BANK,46.73,Aug-20
EREWASH BOROUGH COUNCIL,220547,Household/Residual Waste Collection,Protective Clothing,02/07/20,LLOYDS BANK,47.67,Aug-20
EREWASH BOROUGH COUNCIL,220547,Front Line Support Services,Uniforms,02/07/20,LLOYDS BANK,69.75,Aug-20
EREWASH BOROUGH COUNCIL,220547,Contaminated Land,Materials/Consumables,02/07/20,LLOYDS BANK,71.08,Aug-20
EREWASH BOROUGH COUNCIL,220547,ICT Support Services,Software Licences,02/07/20,LLOYDS BANK,79.73,Aug-20
EREWASH BOROUGH COUNCIL,220547,Transport Trading Account,Training,02/07/20,LLOYDS BANK,97.00,Aug-20
EREWASH BOROUGH COUNCIL,220426,Treasury Management and Bank Charges,Unpaid Cheque Fees,10/08/20,LLOYDS BANK,111.68,Aug-20
EREWASH BOROUGH COUNCIL,220547,ICT Support Services,Maintenance of Equipment,02/07/20,LLOYDS BANK,155.96,Aug-20
EREWASH BOROUGH COUNCIL,220547,Sports Development Coaching & Courses,General Equipment,02/07/20,LLOYDS BANK,175.20,Aug-20
EREWASH BOROUGH COUNCIL,220426,Treasury Management and Bank Charges,Lloyds Bank Charges for Debits and Credits,10/08/20,LLOYDS BANK,177.45,Aug-20
EREWASH BOROUGH COUNCIL,220547,Dog Control,Materials/Consumables,02/07/20,LLOYDS BANK,198.00,Aug-20
EREWASH BOROUGH COUNCIL,220547,Green Space,Materials/Consumables,02/07/20,LLOYDS BANK,254.09,Aug-20
EREWASH BOROUGH COUNCIL,220426,Treasury Management and Bank Charges,Lloyds BACS Services,10/08/20,LLOYDS BANK,573.29,Aug-20
EREWASH BOROUGH COUNCIL,220273,Homelessness,Computer Software,30/06/20,LOCATA (HOUSING SERVICES) LTD,"3,750.00",Aug-20
EREWASH BOROUGH COUNCIL,220230,Transport Trading Account,Tyres,31/07/20,LODGE TYRE COMPANY LTD,48.00,Aug-20
EREWASH BOROUGH COUNCIL,220230,Neighbourhood Wardens,Tyres,31/07/20,LODGE TYRE COMPANY LTD,96.00,Aug-20
EREWASH BOROUGH COUNCIL,220230,Trade Waste,Tyres,31/07/20,LODGE TYRE COMPANY LTD,427.50,Aug-20
EREWASH BOROUGH COUNCIL,220230,Street Scene,Tyres,31/07/20,LODGE TYRE COMPANY LTD,602.50,Aug-20
EREWASH BOROUGH COUNCIL,220230,Green Space,Tyres,31/07/20,LODGE TYRE COMPANY LTD,"1,260.50",Aug-20
EREWASH BOROUGH COUNCIL,220230,Household/Residual Waste Collection,Tyres,31/07/20,LODGE TYRE COMPANY LTD,"1,312.50",Aug-20
EREWASH BOROUGH COUNCIL,220230,Kerbside Dry Recycling Collection,Tyres,31/07/20,LODGE TYRE COMPANY LTD,"1,995.00",Aug-20
EREWASH BOROUGH COUNCIL,220282,Transport Trading Account,Subscriptions,30/06/20,LOGISTICS UK,"1,100.00",Aug-20
EREWASH BOROUGH COUNCIL,220198,Balance Sheet,ICT Works,31/07/20,MACILDOWIE RECRUITMENT EXPERTISE,"1,043.19",Aug-20
EREWASH BOROUGH COUNCIL,220091,Balance Sheet,ICT Works,26/07/20,MACILDOWIE RECRUITMENT EXPERTISE,"1,152.18",Aug-20
EREWASH BOROUGH COUNCIL,220363,Balance Sheet,ICT Works,09/08/20,MACILDOWIE RECRUITMENT EXPERTISE,"1,206.68",Aug-20
EREWASH BOROUGH COUNCIL,220570,Balance Sheet,COVID19 Discretionary Business Grants,27/08/20,MARTIN WHITT T/A MW PRODUCTS,"7,100.00",Aug-20
EREWASH BOROUGH COUNCIL,220662,Balance Sheet,COVID19 Discretionary Business Grants,27/08/20,MARWOOD LEATHER LTD,700.00,Aug-20
EREWASH BOROUGH COUNCIL,220274,Trade Waste,Vehicle Tracking Repairs and Maintenance,01/08/20,MASTERNAUT (UK) LTD,40.78,Aug-20
EREWASH BOROUGH COUNCIL,220274,Ilkeston Admin and Courier,Vehicle Tracking Repairs and Maintenance,01/08/20,MASTERNAUT (UK) LTD,44.85,Aug-20
EREWASH BOROUGH COUNCIL,220274,Property and Estates,Protective Clothing,01/08/20,MASTERNAUT (UK) LTD,44.85,Aug-20
EREWASH BOROUGH COUNCIL,220274,Green Space,General Equipment,01/08/20,MASTERNAUT (UK) LTD,53.00,Aug-20
EREWASH BOROUGH COUNCIL,220274,Kerbside Dry Recycling Collection,Vehicle Tracking Repairs and Maintenance,01/08/20,MASTERNAUT (UK) LTD,248.71,Aug-20
EREWASH BOROUGH COUNCIL,220274,Neighbourhood Wardens,Vehicle Tracking Repairs and Maintenance,01/08/20,MASTERNAUT (UK) LTD,313.95,Aug-20
EREWASH BOROUGH COUNCIL,220274,Street Scene,Vehicle Tracking Repairs and Maintenance,01/08/20,MASTERNAUT (UK) LTD,530.05,Aug-20
EREWASH BOROUGH COUNCIL,220274,Household/Residual Waste Collection,Vehicle Tracking Repairs and Maintenance,01/08/20,MASTERNAUT (UK) LTD,652.36,Aug-20
EREWASH BOROUGH COUNCIL,220274,Green Space,Vehicle Tracking Repairs and Maintenance,01/08/20,MASTERNAUT (UK) LTD,"1,121.25",Aug-20
EREWASH BOROUGH COUNCIL,220563,Balance Sheet,COVID19 Discretionary Business Grants,27/08/20,MATTEST MIDLANDS LIMITED,"10,000.00",Aug-20
EREWASH BOROUGH COUNCIL,220004,Property and Estates,Reactive Maintenance,13/07/20,MDB PLUMBING (NOTTM) LTD,221.99,Aug-20
EREWASH BOROUGH COUNCIL,219887,Property and Estates,Repairs and Maintenance,08/07/20,MDB PLUMBING (NOTTM) LTD,450.04,Aug-20
EREWASH BOROUGH COUNCIL,220592,Balance Sheet,COVID19 Discretionary Business Grants,27/08/20,MEDUSA SOJOURN T/AS DUCKLINGS PRIVATE NURSERY,"2,500.00",Aug-20
EREWASH BOROUGH COUNCIL,219938,Household/Residual Waste Collection,Bins,15/07/20,MGB PLASTICS LTD,"6,320.00",Aug-20
EREWASH BOROUGH COUNCIL,219937,Kerbside Dry Recycling Collection,Bins,13/07/20,MGB PLASTICS LTD,"7,584.00",Aug-20
EREWASH BOROUGH COUNCIL,220545,Non Ring Fenced Government Grants,Revenue Support Grant,20/07/20,MHCLG,"-9,493.00",Aug-20
EREWASH BOROUGH COUNCIL,220546,Non Ring Fenced Government Grants,Revenue Support Grant,19/08/20,MHCLG,"-8,438.00",Aug-20
EREWASH BOROUGH COUNCIL,220545,Balance Sheet,NNDR Collection Fund Control Account,20/07/20,MHCLG,"-7,687.00",Aug-20
EREWASH BOROUGH COUNCIL,220546,Balance Sheet,NNDR Collection Fund Control Account,19/08/20,MHCLG,"-6,832.00",Aug-20
EREWASH BOROUGH COUNCIL,220545,Balance Sheet,NNDR Collection Fund Control Account,20/07/20,MHCLG,"-2,607.00",Aug-20
EREWASH BOROUGH COUNCIL,220546,Balance Sheet,NNDR Collection Fund Control Account,19/08/20,MHCLG,"-2,318.00",Aug-20
EREWASH BOROUGH COUNCIL,220546,Balance Sheet,NNDR Collection Fund Control Account,19/08/20,MHCLG,"994,832.00",Aug-20
EREWASH BOROUGH COUNCIL,220545,Balance Sheet,NNDR Collection Fund Control Account,20/07/20,MHCLG,"1,119,187.00",Aug-20
EREWASH BOROUGH COUNCIL,220011,Green Space,Materials/Consumables,23/07/20,MIDLANDS PARKS FORUM,255.00,Aug-20
EREWASH BOROUGH COUNCIL,220653,Balance Sheet,COVID19 Discretionary Business Grants,27/08/20,MOMMAS SOUL FOOD KITCHEN,"1,200.00",Aug-20
EREWASH BOROUGH COUNCIL,220520,Reprographics,Printing and Stationery,05/06/20,MORGANA SYSTEMS LTD,801.00,Aug-20
EREWASH BOROUGH COUNCIL,220611,Balance Sheet,COVID19 Discretionary Business Grants,27/08/20,MS FINANCIAL SOLUTIONS LTD,"2,100.00",Aug-20
EREWASH BOROUGH COUNCIL,220467,Car Parking,Reactive Maintenance,29/07/20,N B CONSTRUCTION,882.00,Aug-20
EREWASH BOROUGH COUNCIL,220467,Property and Estates,Planned Preventative Maintenance,29/07/20,N B CONSTRUCTION,"2,081.16",Aug-20
EREWASH BOROUGH COUNCIL,220606,Balance Sheet,COVID19 Discretionary Business Grants,27/08/20,NEXUS EXHIBITIONS LTD,"2,100.00",Aug-20
EREWASH BOROUGH COUNCIL,220666,Balance Sheet,COVID19 Discretionary Business Grants,27/08/20,NIGEL ROBINSON LTD,700.00,Aug-20
EREWASH BOROUGH COUNCIL,220620,Balance Sheet,COVID19 Discretionary Business Grants,27/08/20,NO58,"2,100.00",Aug-20
EREWASH BOROUGH COUNCIL,220009,Green Space,Materials/Consumables,14/07/20,NOMIX ENVIRO LIMITED,433.10,Aug-20
EREWASH BOROUGH COUNCIL,220143,ICT Support Services,Subscriptions,22/07/20,NOTTINGHAM CITY COUNCIL..,306.00,Aug-20
EREWASH BOROUGH COUNCIL,220655,Balance Sheet,COVID19 Discretionary Business Grants,27/08/20,ONESTOPCARSHOPUK LIMITED,"1,200.00",Aug-20
EREWASH BOROUGH COUNCIL,220196,Property and Estates,PPM Mechanical and Equipment,30/06/20,ORTON MECHANICAL SERVICES,473.92,Aug-20
EREWASH BOROUGH COUNCIL,220641,Balance Sheet,COVID19 Discretionary Business Grants,27/08/20,OVENFRESH,"1,200.00",Aug-20
EREWASH BOROUGH COUNCIL,220585,Balance Sheet,COVID19 Discretionary Business Grants,27/08/20,PARKSIDE HIGH CIC,"4,200.00",Aug-20
EREWASH BOROUGH COUNCIL,220090,Leisure Contract,Contracted Services,28/07/20,PARKWOOD LEISURE LTD,"73,885.00",Aug-20
EREWASH BOROUGH COUNCIL,220572,Balance Sheet,COVID19 Discretionary Business Grants,27/08/20,PAUL COOPER GP DENTAL LABORATORY,"7,100.00",Aug-20
EREWASH BOROUGH COUNCIL,220577,Balance Sheet,COVID19 Discretionary Business Grants,27/08/20,PCC OF ST JOHNS CHURCH,"4,200.00",Aug-20
EREWASH BOROUGH COUNCIL,220559,Balance Sheet,COVID19 Discretionary Business Grants,27/08/20,PEAK FITNESS LTD,"7,100.00",Aug-20
EREWASH BOROUGH COUNCIL,219905,Green Space,Materials/Consumables,21/07/20,PEEL ELECTRICAL LTD,297.27,Aug-20
EREWASH BOROUGH COUNCIL,220264,Property and Estates,PPM Mechanical and Equipment,31/07/20,PEEL ELECTRICAL LTD,"1,282.35",Aug-20
EREWASH BOROUGH COUNCIL,220565,Balance Sheet,COVID19 Discretionary Business Grants,27/08/20,PENNA CLOTHING LTD,"10,000.00",Aug-20
EREWASH BOROUGH COUNCIL,220511,Homelessness,Contracted Services,01/05/20,PEOPLE POTENTIAL POSSIBILITIES,"13,214.33",Aug-20
EREWASH BOROUGH COUNCIL,220277,Homelessness,Contracted Services,04/08/20,PEOPLE POTENTIAL POSSIBILITIES,"13,214.33",Aug-20
EREWASH BOROUGH COUNCIL,220278,Homelessness,Contracted Services,04/08/20,PEOPLE POTENTIAL POSSIBILITIES,"13,214.33",Aug-20
EREWASH BOROUGH COUNCIL,220276,Homelessness,Contracted Services,05/08/20,PEOPLE POTENTIAL POSSIBILITIES,"13,214.33",Aug-20
EREWASH BOROUGH COUNCIL,220277,Homelessness,Contracted Services,04/08/20,PEOPLE POTENTIAL POSSIBILITIES,"13,829.50",Aug-20
EREWASH BOROUGH COUNCIL,220511,Homelessness,Contracted Services,01/05/20,PEOPLE POTENTIAL POSSIBILITIES,"13,829.50",Aug-20
EREWASH BOROUGH COUNCIL,220278,Homelessness,Contracted Services,04/08/20,PEOPLE POTENTIAL POSSIBILITIES,"13,829.50",Aug-20
EREWASH BOROUGH COUNCIL,220276,Homelessness,Contracted Services,05/08/20,PEOPLE POTENTIAL POSSIBILITIES,"13,829.50",Aug-20
EREWASH BOROUGH COUNCIL,220288,Green Space,Materials/Consumables,20/07/20,PERFECTLY HOUSE PROUD,"1,095.00",Aug-20
EREWASH BOROUGH COUNCIL,220584,Balance Sheet,COVID19 Discretionary Business Grants,27/08/20,PETSTAY DERBY,"4,200.00",Aug-20
EREWASH BOROUGH COUNCIL,220335,Erewash Museum,Conservation,11/08/20,PICTORIAL LTD,270.00,Aug-20
EREWASH BOROUGH COUNCIL,219910,Green Space,Materials/Consumables,17/07/20,PLATTS HARRIS LIMITED,"1,636.65",Aug-20
EREWASH BOROUGH COUNCIL,220661,Balance Sheet,COVID19 Discretionary Business Grants,27/08/20,PROJECT DELIVERY CONSULTING SERVICES LTD,700.00,Aug-20
EREWASH BOROUGH COUNCIL,220285,Green Space,Materials/Consumables,04/08/20,PROTECTIVE WEAR SUPPLIES LTD,364.78,Aug-20
EREWASH BOROUGH COUNCIL,220158,Green Space,Materials/Consumables,23/07/20,PROTECTIVE WEAR SUPPLIES LTD,651.09,Aug-20
EREWASH BOROUGH COUNCIL,220238,Economic Development,Contracted Services,01/08/20,PROXIMITY FUTURES T/A ELEPHANT WIFI,303.33,Aug-20
EREWASH BOROUGH COUNCIL,220495,Balance Sheet,Payroll Collection A/c - AVCS,25/08/20,PRUDENTIAL,"5,262.50",Aug-20
EREWASH BOROUGH COUNCIL,220188,Balance Sheet,Counter Fraud Fund,31/07/20,Q2 LIMITED,770.00,Aug-20
EREWASH BOROUGH COUNCIL,220201,Performance Management,Consultants Fees,31/07/20,Q2 LIMITED,"1,540.00",Aug-20
EREWASH BOROUGH COUNCIL,220187,Revenues and Benefits,Software Licences,31/07/20,Q2 LIMITED,"1,540.00",Aug-20
EREWASH BOROUGH COUNCIL,220175,Kerbside Dry Recycling Collection,Agency Staff,09/07/20,QUALITY SERVICE RECRUITMENT LTD,353.20,Aug-20
EREWASH BOROUGH COUNCIL,220176,Kerbside Dry Recycling Collection,Agency Staff,16/07/20,QUALITY SERVICE RECRUITMENT LTD,417.09,Aug-20
EREWASH BOROUGH COUNCIL,220532,Kerbside Dry Recycling Collection,Agency Staff,06/08/20,QUALITY SERVICE RECRUITMENT LTD,444.15,Aug-20
EREWASH BOROUGH COUNCIL,220164,Kerbside Dry Recycling Collection,Agency Staff,30/07/20,QUALITY SERVICE RECRUITMENT LTD,444.15,Aug-20
EREWASH BOROUGH COUNCIL,220531,Kerbside Dry Recycling Collection,Agency Staff,13/08/20,QUALITY SERVICE RECRUITMENT LTD,444.15,Aug-20
EREWASH BOROUGH COUNCIL,220177,Kerbside Dry Recycling Collection,Agency Staff,23/07/20,QUALITY SERVICE RECRUITMENT LTD,464.13,Aug-20
EREWASH BOROUGH COUNCIL,220175,Household/Residual Waste Collection,Agency Staff,09/07/20,QUALITY SERVICE RECRUITMENT LTD,529.81,Aug-20
EREWASH BOROUGH COUNCIL,220176,Household/Residual Waste Collection,Agency Staff,16/07/20,QUALITY SERVICE RECRUITMENT LTD,625.63,Aug-20
EREWASH BOROUGH COUNCIL,220532,Household/Residual Waste Collection,Agency Staff,06/08/20,QUALITY SERVICE RECRUITMENT LTD,666.22,Aug-20
EREWASH BOROUGH COUNCIL,220531,Household/Residual Waste Collection,Agency Staff,13/08/20,QUALITY SERVICE RECRUITMENT LTD,666.22,Aug-20
EREWASH BOROUGH COUNCIL,220164,Household/Residual Waste Collection,Agency Staff,30/07/20,QUALITY SERVICE RECRUITMENT LTD,666.22,Aug-20
EREWASH BOROUGH COUNCIL,220177,Household/Residual Waste Collection,Agency Staff,23/07/20,QUALITY SERVICE RECRUITMENT LTD,696.19,Aug-20
EREWASH BOROUGH COUNCIL,220508,Transport Trading Account,Agency Staff,24/08/20,QUESTECH RECRUITMENT LTD,869.75,Aug-20
EREWASH BOROUGH COUNCIL,220428,Transport Trading Account,Agency Staff,10/08/20,QUESTECH RECRUITMENT LTD,894.25,Aug-20
EREWASH BOROUGH COUNCIL,220256,Transport Trading Account,Agency Staff,03/08/20,QUESTECH RECRUITMENT LTD,906.50,Aug-20
EREWASH BOROUGH COUNCIL,220377,Transport Trading Account,Agency Staff,17/08/20,QUESTECH RECRUITMENT LTD,906.50,Aug-20
EREWASH BOROUGH COUNCIL,220253,Transport Trading Account,Agency Staff,27/07/20,QUESTECH RECRUITMENT LTD,906.50,Aug-20
EREWASH BOROUGH COUNCIL,220663,Balance Sheet,COVID19 Discretionary Business Grants,27/08/20,QUICK FIX KITCHENS,700.00,Aug-20
EREWASH BOROUGH COUNCIL,220612,Balance Sheet,COVID19 Discretionary Business Grants,27/08/20,R4 CIVILS LTD,"2,100.00",Aug-20
EREWASH BOROUGH COUNCIL,220607,Balance Sheet,COVID19 Discretionary Business Grants,27/08/20,RALPH EDWARD FURNITURE LTD,"2,100.00",Aug-20
EREWASH BOROUGH COUNCIL,220364,Building Control - Fee Earning,Contracted Services,01/08/20,RANSOMWOOD ESTATES UK LIMITED,531.67,Aug-20
EREWASH BOROUGH COUNCIL,220651,Balance Sheet,COVID19 Discretionary Business Grants,27/08/20,RATMALLY LTD,"1,200.00",Aug-20
EREWASH BOROUGH COUNCIL,220008,Green Space,Materials/Consumables,16/07/20,RIGBY TAYLOR LTD,338.75,Aug-20
EREWASH BOROUGH COUNCIL,220664,Balance Sheet,COVID19 Discretionary Business Grants,27/08/20,RILEY TREE SERVICES,700.00,Aug-20
EREWASH BOROUGH COUNCIL,220217,Green Space,Materials/Consumables,23/07/20,ROBERT POCHIN LTD,292.60,Aug-20
EREWASH BOROUGH COUNCIL,220222,Revenues and Benefits,Postages,06/08/20,ROYAL MAIL GROUP LTD.,333.00,Aug-20
EREWASH BOROUGH COUNCIL,220334,Revenues and Benefits,Postages,12/08/20,ROYAL MAIL GROUP LTD.,"1,494.82",Aug-20
EREWASH BOROUGH COUNCIL,220575,Balance Sheet,COVID19 Discretionary Business Grants,27/08/20,S&E BEAUTY LOUNGE,"7,100.00",Aug-20
EREWASH BOROUGH COUNCIL,220665,Balance Sheet,COVID19 Discretionary Business Grants,27/08/20,SALISBURY STREET GUESTHOUSE,700.00,Aug-20
EREWASH BOROUGH COUNCIL,220541,Balance Sheet,Cycle Loans to Employees,08/07/20,REDACTED PERSONAL DATA,325.00,Aug-20
EREWASH BOROUGH COUNCIL,220646,Balance Sheet,COVID19 Discretionary Business Grants,27/08/20,SAM@HEADROOM,"1,200.00",Aug-20
EREWASH BOROUGH COUNCIL,220246,Household/Residual Waste Collection,Repairs and Maintenance,29/06/20,SANDICLIFFE LIMITED,306.51,Aug-20
EREWASH BOROUGH COUNCIL,220247,Household/Residual Waste Collection,Repairs and Maintenance,31/07/20,SANDICLIFFE LIMITED,"1,784.32",Aug-20
EREWASH BOROUGH COUNCIL,220220,Registration of Electors,Printing and Stationery,31/07/20,SCI PRINT LTD,"6,463.70",Aug-20
EREWASH BOROUGH COUNCIL,220223,Green Space,Metered Water,03/08/20,SCOTTISH WATER BUSINESS STREAM LIMITED,-69.45,Aug-20
EREWASH BOROUGH COUNCIL,220223,Abbotsford Community Centre,Unmetered Water,03/08/20,SCOTTISH WATER BUSINESS STREAM LIMITED,-65.28,Aug-20
EREWASH BOROUGH COUNCIL,220223,Car Parking,Unmetered Water,03/08/20,SCOTTISH WATER BUSINESS STREAM LIMITED,-6.50,Aug-20
EREWASH BOROUGH COUNCIL,220223,Shopmobility - Long Eaton,Metered Water,03/08/20,SCOTTISH WATER BUSINESS STREAM LIMITED,12.66,Aug-20
EREWASH BOROUGH COUNCIL,220223,Shopmobility - Ilkeston,Metered Water,03/08/20,SCOTTISH WATER BUSINESS STREAM LIMITED,25.86,Aug-20
EREWASH BOROUGH COUNCIL,220223,Civic Accommodation - Long Eaton,Metered Water,03/08/20,SCOTTISH WATER BUSINESS STREAM LIMITED,26.76,Aug-20
EREWASH BOROUGH COUNCIL,220223,Erewash Museum,Unmetered Water,03/08/20,SCOTTISH WATER BUSINESS STREAM LIMITED,44.23,Aug-20
EREWASH BOROUGH COUNCIL,220223,Cemeteries,Metered Water,03/08/20,SCOTTISH WATER BUSINESS STREAM LIMITED,71.96,Aug-20
EREWASH BOROUGH COUNCIL,220223,Long Eaton Market,Metered Water,03/08/20,SCOTTISH WATER BUSINESS STREAM LIMITED,148.23,Aug-20
EREWASH BOROUGH COUNCIL,220223,Cotmanhay Pavilion,Unmetered Water,03/08/20,SCOTTISH WATER BUSINESS STREAM LIMITED,164.28,Aug-20
EREWASH BOROUGH COUNCIL,220223,Civic Accommodation - Ilkeston,Metered Water,03/08/20,SCOTTISH WATER BUSINESS STREAM LIMITED,421.42,Aug-20
EREWASH BOROUGH COUNCIL,220223,Rutland Sports Park,Metered Water,03/08/20,SCOTTISH WATER BUSINESS STREAM LIMITED,428.36,Aug-20
EREWASH BOROUGH COUNCIL,220223,Merlin Way Depot - Ilkeston,Metered Water,03/08/20,SCOTTISH WATER BUSINESS STREAM LIMITED,893.24,Aug-20
EREWASH BOROUGH COUNCIL,220223,Public Conveniences,Metered Water,03/08/20,SCOTTISH WATER BUSINESS STREAM LIMITED,"1,045.08",Aug-20
EREWASH BOROUGH COUNCIL,220223,Allotments,Metered Water,03/08/20,SCOTTISH WATER BUSINESS STREAM LIMITED,"2,064.79",Aug-20
EREWASH BOROUGH COUNCIL,220113,Street Scene,Maintenance of Bus Shelters,29/07/20,SHELTER MAINTENANCE CO,"1,015.00",Aug-20
EREWASH BOROUGH COUNCIL,219990,Street Scene,Maintenance of Bus Shelters,27/07/20,SHELTER MAINTENANCE CO,"1,647.00",Aug-20
EREWASH BOROUGH COUNCIL,220561,Balance Sheet,COVID19 Discretionary Business Grants,27/08/20,SIGN SYSTEMS (UK) LTD,"10,000.00",Aug-20
EREWASH BOROUGH COUNCIL,220645,Balance Sheet,COVID19 Discretionary Business Grants,27/08/20,SMITH-GUARINO TRADING LTD,"1,200.00",Aug-20
EREWASH BOROUGH COUNCIL,220579,Balance Sheet,COVID19 Discretionary Business Grants,27/08/20,SNAPE JOINERY LTD,"2,700.00",Aug-20
EREWASH BOROUGH COUNCIL,220233,Atmospheric Pollution,Nitrogen Dioxide Survey,10/03/20,SOUTH DERBYSHIRE DISTRICT COUNCIL,"1,453.35",Aug-20
EREWASH BOROUGH COUNCIL,220131,Atmospheric Pollution,Nitrogen Dioxide Survey,14/07/20,STAFFORDSHIRE COUNTY COUNCIL,855.00,Aug-20
EREWASH BOROUGH COUNCIL,220649,Balance Sheet,COVID19 Discretionary Business Grants,27/08/20,"STAY, PLAY & PAMPER","1,200.00",Aug-20
EREWASH BOROUGH COUNCIL,219868,Economic Development,Project Grants,15/07/20,STEELCRAFT FABRICATIONS,220.00,Aug-20
EREWASH BOROUGH COUNCIL,220118,Play Areas,Materials/Consumables,24/07/20,STEELCRAFT FABRICATIONS,"1,490.00",Aug-20
EREWASH BOROUGH COUNCIL,220268,Corporate Health and Safety,Water Testing (Legionella),31/07/20,STERILIZING SERVICES LTD,"1,579.90",Aug-20
EREWASH BOROUGH COUNCIL,220566,Balance Sheet,COVID19 Discretionary Business Grants,27/08/20,STIRLAND PATERSON (PRINTERS) LTD,"25,000.00",Aug-20
EREWASH BOROUGH COUNCIL,220644,Balance Sheet,COVID19 Discretionary Business Grants,27/08/20,STUART FABRICATIONS LTD,"1,200.00",Aug-20
EREWASH BOROUGH COUNCIL,220637,Balance Sheet,COVID19 Discretionary Business Grants,27/08/20,STUARTS HAIR & BEAUTY,"1,200.00",Aug-20
EREWASH BOROUGH COUNCIL,220639,Balance Sheet,COVID19 Discretionary Business Grants,27/08/20,STUARTS HAIR & BEAUTY.,"1,200.00",Aug-20
EREWASH BOROUGH COUNCIL,220603,Balance Sheet,COVID19 Discretionary Business Grants,27/08/20,STYLISH HOMES (NOTTS) LTD,"2,500.00",Aug-20
EREWASH BOROUGH COUNCIL,219823,Green Space,Contracted Services,16/07/20,T H HEATH  CONTRACTS  LTD,"2,508.00",Aug-20
EREWASH BOROUGH COUNCIL,220219,Green Space,Contracted Services,31/07/20,T H HEATH  CONTRACTS  LTD,"5,266.64",Aug-20
EREWASH BOROUGH COUNCIL,220203,Commissioned Projects,Fees Costs and Expenses,14/07/20,TECHNOGYM UK LTD,"1,080.00",Aug-20
EREWASH BOROUGH COUNCIL,219814,Property and Estates,Alarms Reactive Maintenance,14/07/20,TECSERV UK,283.08,Aug-20
EREWASH BOROUGH COUNCIL,220005,Property and Estates,Alarms Reactive Maintenance,22/07/20,TECSERV UK,331.08,Aug-20
EREWASH BOROUGH COUNCIL,219818,Property and Estates,Alarms Reactive Maintenance,13/07/20,TECSERV UK,372.00,Aug-20
EREWASH BOROUGH COUNCIL,220261,Property and Estates,Alarms Reactive Maintenance,29/07/20,TECSERV UK,"1,071.00",Aug-20
EREWASH BOROUGH COUNCIL,220266,ICT Support Services,Telephones,01/08/20,TELEPHONE TECHNOLOGY LTD,210.00,Aug-20
EREWASH BOROUGH COUNCIL,220654,Balance Sheet,COVID19 Discretionary Business Grants,27/08/20,TENNIS X LTD,"1,200.00",Aug-20
EREWASH BOROUGH COUNCIL,220252,Household/Residual Waste Collection,Repairs and Maintenance,28/07/20,TERBERG MATEC UK,413.23,Aug-20
EREWASH BOROUGH COUNCIL,220248,Household/Residual Waste Collection,Repairs and Maintenance,03/08/20,TERBERG MATEC UK,601.83,Aug-20
EREWASH BOROUGH COUNCIL,220014,Household/Residual Waste Collection,Repairs and Maintenance,21/07/20,TERBERG MATEC UK,711.08,Aug-20
EREWASH BOROUGH COUNCIL,220631,Balance Sheet,COVID19 Discretionary Business Grants,27/08/20,TERESA SHAW T/A POROSOL PRINT,"1,200.00",Aug-20
EREWASH BOROUGH COUNCIL,220567,Balance Sheet,COVID19 Discretionary Business Grants,27/08/20,TERESA SMITH T/A BELLE AME,"4,200.00",Aug-20
EREWASH BOROUGH COUNCIL,220583,Balance Sheet,COVID19 Discretionary Business Grants,27/08/20,THE BARKERS LOUNGE,"4,200.00",Aug-20
EREWASH BOROUGH COUNCIL,220638,Balance Sheet,COVID19 Discretionary Business Grants,27/08/20,THE BEAUTY RETREAT,"1,200.00",Aug-20
EREWASH BOROUGH COUNCIL,220133,Homelessness,Temporary Accommodation,06/07/20,THE CLARENCE HOTEL,350.00,Aug-20
EREWASH BOROUGH COUNCIL,220132,Homelessness,Temporary Accommodation,06/07/20,THE CLARENCE HOTEL,350.00,Aug-20
EREWASH BOROUGH COUNCIL,220271,Homelessness,Temporary Accommodation,03/08/20,THE CLARENCE HOTEL,350.00,Aug-20
EREWASH BOROUGH COUNCIL,220647,Balance Sheet,COVID19 Discretionary Business Grants,27/08/20,THE FILLING STATION,"1,200.00",Aug-20
EREWASH BOROUGH COUNCIL,220578,Balance Sheet,COVID19 Discretionary Business Grants,27/08/20,THE HOUSE OF SK-1 LTD,"4,200.00",Aug-20
EREWASH BOROUGH COUNCIL,220419,Green Space,Fuel,02/08/20,THE RIGHT FUELCARD COMPANY LTD,348.60,Aug-20
EREWASH BOROUGH COUNCIL,220420,Green Space,Fuel,09/08/20,THE RIGHT FUELCARD COMPANY LTD,359.30,Aug-20
EREWASH BOROUGH COUNCIL,220418,Green Space,Fuel,26/07/20,THE RIGHT FUELCARD COMPANY LTD,470.50,Aug-20
EREWASH BOROUGH COUNCIL,220543,Green Space,Fuel,16/08/20,THE RIGHT FUELCARD COMPANY LTD,502.61,Aug-20
EREWASH BOROUGH COUNCIL,220593,Balance Sheet,COVID19 Discretionary Business Grants,27/08/20,THE ROCKING HORSE NURSERIES LTD,"2,500.00",Aug-20
EREWASH BOROUGH COUNCIL,220221,Registration of Electors,Subscriptions,01/08/20,THOMSON REUTERS,265.00,Aug-20
EREWASH BOROUGH COUNCIL,220163,Kerbside Dry Recycling Collection,Agency Staff,29/07/20,THORN BAKER LIMITED,695.97,Aug-20
EREWASH BOROUGH COUNCIL,220180,Kerbside Dry Recycling Collection,Agency Staff,14/07/20,THORN BAKER LIMITED,831.01,Aug-20
EREWASH BOROUGH COUNCIL,220401,Kerbside Dry Recycling Collection,Agency Staff,12/08/20,THORN BAKER LIMITED,855.07,Aug-20
EREWASH BOROUGH COUNCIL,220179,Kerbside Dry Recycling Collection,Agency Staff,08/07/20,THORN BAKER LIMITED,883.41,Aug-20
EREWASH BOROUGH COUNCIL,220181,Kerbside Dry Recycling Collection,Agency Staff,22/07/20,THORN BAKER LIMITED,909.31,Aug-20
EREWASH BOROUGH COUNCIL,220402,Kerbside Dry Recycling Collection,Agency Staff,05/08/20,THORN BAKER LIMITED,909.31,Aug-20
EREWASH BOROUGH COUNCIL,220163,Household/Residual Waste Collection,Agency Staff,29/07/20,THORN BAKER LIMITED,"1,043.95",Aug-20
EREWASH BOROUGH COUNCIL,220180,Household/Residual Waste Collection,Agency Staff,14/07/20,THORN BAKER LIMITED,"1,246.52",Aug-20
EREWASH BOROUGH COUNCIL,220401,Household/Residual Waste Collection,Agency Staff,12/08/20,THORN BAKER LIMITED,"1,282.61",Aug-20
EREWASH BOROUGH COUNCIL,220179,Household/Residual Waste Collection,Agency Staff,08/07/20,THORN BAKER LIMITED,"1,325.12",Aug-20
EREWASH BOROUGH COUNCIL,220402,Household/Residual Waste Collection,Agency Staff,05/08/20,THORN BAKER LIMITED,"1,363.97",Aug-20
EREWASH BOROUGH COUNCIL,220181,Household/Residual Waste Collection,Agency Staff,22/07/20,THORN BAKER LIMITED,"1,363.97",Aug-20
EREWASH BOROUGH COUNCIL,219883,Trees Hedges and Local Nature Reserves,Contracted Services,20/07/20,TOM RICHARDS TREE SERVICES,950.00,Aug-20
EREWASH BOROUGH COUNCIL,220280,Trees Hedges and Local Nature Reserves,Contracted Services,30/07/20,TOM RICHARDS TREE SERVICES,"11,830.00",Aug-20
EREWASH BOROUGH COUNCIL,219892,Cemeteries,Electricity,15/07/20,TOTAL GAS & POWER LTD,"-1,742.29",Aug-20
EREWASH BOROUGH COUNCIL,219892,Public Clocks,Electricity,15/07/20,TOTAL GAS & POWER LTD,17.36,Aug-20
EREWASH BOROUGH COUNCIL,219892,Belvoir Close Maintenance,Electricity,15/07/20,TOTAL GAS & POWER LTD,20.94,Aug-20
EREWASH BOROUGH COUNCIL,219892,Pewit Golf Course,Electricity,15/07/20,TOTAL GAS & POWER LTD,22.14,Aug-20
EREWASH BOROUGH COUNCIL,219892,Civic Accommodation - Long Eaton,Electricity,15/07/20,TOTAL GAS & POWER LTD,23.22,Aug-20
EREWASH BOROUGH COUNCIL,219892,Watercourse Maintenance,Electricity,15/07/20,TOTAL GAS & POWER LTD,26.16,Aug-20
EREWASH BOROUGH COUNCIL,219892,Long Eaton Market,Electricity,15/07/20,TOTAL GAS & POWER LTD,37.45,Aug-20
EREWASH BOROUGH COUNCIL,219892,Bridge Arches - Long Eaton,Electricity,15/07/20,TOTAL GAS & POWER LTD,43.58,Aug-20
EREWASH BOROUGH COUNCIL,219892,Cotmanhay Pavilion,Electricity,15/07/20,TOTAL GAS & POWER LTD,49.35,Aug-20
EREWASH BOROUGH COUNCIL,219892,Shopmobility - Ilkeston,Electricity,15/07/20,TOTAL GAS & POWER LTD,51.05,Aug-20
EREWASH BOROUGH COUNCIL,219858,Abbotsford Community Centre,Gas,14/07/20,TOTAL GAS & POWER LTD,63.49,Aug-20
EREWASH BOROUGH COUNCIL,219858,Sandiacre Friesland Sports Centre,Gas,14/07/20,TOTAL GAS & POWER LTD,86.74,Aug-20
EREWASH BOROUGH COUNCIL,219892,Abbotsford Community Centre,Electricity,15/07/20,TOTAL GAS & POWER LTD,94.89,Aug-20
EREWASH BOROUGH COUNCIL,219858,Erewash Museum,Gas,14/07/20,TOTAL GAS & POWER LTD,118.71,Aug-20
EREWASH BOROUGH COUNCIL,219891,Long Eaton Market,Electricity,15/07/20,TOTAL GAS & POWER LTD,132.76,Aug-20
EREWASH BOROUGH COUNCIL,219891,Sandiacre Friesland Sports Centre,Electricity,15/07/20,TOTAL GAS & POWER LTD,165.60,Aug-20
EREWASH BOROUGH COUNCIL,219858,Rutland Sports Park,Gas,14/07/20,TOTAL GAS & POWER LTD,169.61,Aug-20
EREWASH BOROUGH COUNCIL,219892,Shopmobility - Long Eaton,Electricity,15/07/20,TOTAL GAS & POWER LTD,170.43,Aug-20
EREWASH BOROUGH COUNCIL,219858,Merlin Way Depot - Ilkeston,Gas,14/07/20,TOTAL GAS & POWER LTD,187.41,Aug-20
EREWASH BOROUGH COUNCIL,219892,CCTV - Ilkeston and Long Eaton,Electricity,15/07/20,TOTAL GAS & POWER LTD,240.99,Aug-20
EREWASH BOROUGH COUNCIL,219892,Erewash Museum,Electricity,15/07/20,TOTAL GAS & POWER LTD,249.28,Aug-20
EREWASH BOROUGH COUNCIL,219858,Civic Accommodation - Long Eaton,Gas,14/07/20,TOTAL GAS & POWER LTD,298.14,Aug-20
EREWASH BOROUGH COUNCIL,219892,Ilkeston Market,Electricity,15/07/20,TOTAL GAS & POWER LTD,365.33,Aug-20
EREWASH BOROUGH COUNCIL,219858,Green Space,Gas,14/07/20,TOTAL GAS & POWER LTD,395.05,Aug-20
EREWASH BOROUGH COUNCIL,219891,Green Space,Electricity,15/07/20,TOTAL GAS & POWER LTD,444.53,Aug-20
EREWASH BOROUGH COUNCIL,219892,Car Parking,Electricity,15/07/20,TOTAL GAS & POWER LTD,495.53,Aug-20
EREWASH BOROUGH COUNCIL,219892,Public Conveniences,Electricity,15/07/20,TOTAL GAS & POWER LTD,528.43,Aug-20
EREWASH BOROUGH COUNCIL,219858,Civic Accommodation - Ilkeston,Gas,14/07/20,TOTAL GAS & POWER LTD,605.60,Aug-20
EREWASH BOROUGH COUNCIL,219891,Civic Accommodation - Ilkeston,Electricity,15/07/20,TOTAL GAS & POWER LTD,"1,137.11",Aug-20
EREWASH BOROUGH COUNCIL,219891,Merlin Way Depot - Ilkeston,Electricity,15/07/20,TOTAL GAS & POWER LTD,"1,203.35",Aug-20
EREWASH BOROUGH COUNCIL,219891,Civic Accommodation - Long Eaton,Electricity,15/07/20,TOTAL GAS & POWER LTD,"1,458.68",Aug-20
EREWASH BOROUGH COUNCIL,219892,Green Space,Electricity,15/07/20,TOTAL GAS & POWER LTD,"1,648.51",Aug-20
EREWASH BOROUGH COUNCIL,220257,Transport Trading Account,Software Licences,09/07/20,TRAPEZE GROUP (UK) LTD,"4,194.08",Aug-20
EREWASH BOROUGH COUNCIL,220602,Balance Sheet,COVID19 Discretionary Business Grants,27/08/20,TRIMLACE LIMITED,"2,500.00",Aug-20
EREWASH BOROUGH COUNCIL,220191,Homelessness,Homelessness-Lease Properties,05/08/20,TUNTUM HOUSING ASSOCIATION.,"1,238.25",Aug-20
EREWASH BOROUGH COUNCIL,220192,Homelessness,Homelessness-Lease Properties,05/08/20,TUNTUM HOUSING ASSOCIATION.,"1,238.25",Aug-20
EREWASH BOROUGH COUNCIL,220613,Balance Sheet,COVID19 Discretionary Business Grants,27/08/20,UK ABRASIVES LTD,"2,100.00",Aug-20
EREWASH BOROUGH COUNCIL,220498,Payments,Commission,25/08/20,UNISON,-7.28,Aug-20
EREWASH BOROUGH COUNCIL,220498,Balance Sheet,Payroll Collection A/c - Trade Union Subscriptions,25/08/20,UNISON,485.40,Aug-20
EREWASH BOROUGH COUNCIL,220594,Balance Sheet,COVID19 Discretionary Business Grants,27/08/20,VICKYS SWIMSCHOOL,"2,500.00",Aug-20
EREWASH BOROUGH COUNCIL,220086,Environmental Protection Act,Work In Default,25/07/20,VITESSE CLEANING SOLUTIONS,"1,075.00",Aug-20
EREWASH BOROUGH COUNCIL,220622,Balance Sheet,COVID19 Discretionary Business Grants,27/08/20,WAY AHEAD,"2,100.00",Aug-20
EREWASH BOROUGH COUNCIL,220316,Balance Sheet,COVID19 Discretionary Business Grants,12/08/20,WAY AHEAD,"5,000.00",Aug-20
EREWASH BOROUGH COUNCIL,220552,Council Tax Collection,Fees Costs and Expenses,04/08/20,WILKIN CHAPMAN LLP,"1,390.00",Aug-20
EREWASH BOROUGH COUNCIL,220174,Kerbside Dry Recycling Collection,Agency Staff,11/07/20,WORKCHAIN LTD,816.96,Aug-20
EREWASH BOROUGH COUNCIL,220173,Kerbside Dry Recycling Collection,Agency Staff,04/07/20,WORKCHAIN LTD,831.81,Aug-20
EREWASH BOROUGH COUNCIL,220172,Kerbside Dry Recycling Collection,Agency Staff,18/07/20,WORKCHAIN LTD,"1,025.52",Aug-20
EREWASH BOROUGH COUNCIL,220162,Kerbside Dry Recycling Collection,Agency Staff,25/07/20,WORKCHAIN LTD,"1,098.99",Aug-20
EREWASH BOROUGH COUNCIL,220174,Household/Residual Waste Collection,Agency Staff,11/07/20,WORKCHAIN LTD,"1,225.44",Aug-20
EREWASH BOROUGH COUNCIL,220173,Household/Residual Waste Collection,Agency Staff,04/07/20,WORKCHAIN LTD,"1,247.71",Aug-20
EREWASH BOROUGH COUNCIL,220172,Household/Residual Waste Collection,Agency Staff,18/07/20,WORKCHAIN LTD,"1,538.28",Aug-20
EREWASH BOROUGH COUNCIL,220162,Household/Residual Waste Collection,Agency Staff,25/07/20,WORKCHAIN LTD,"1,648.49",Aug-20
EREWASH BOROUGH COUNCIL,220615,Balance Sheet,COVID19 Discretionary Business Grants,27/08/20,YOUR MIX LTD,"2,100.00",Aug-20
EREWASH BOROUGH COUNCIL,220001,ICT Support Services,Data Lines,26/07/20,ZEN INTERNET LIMITED,"1,367.01",Aug-20
